bitfinex-derivatives/quotes_BTCF0:USTF0_20260127
["timestamp","ask_amount","ask_price","bid_price","bid_amount"]
[1769545767183,0.00258838,89214.0,89199.0,0.02079746]
[1769545767575,0.00934672,89212.0,89196.0,0.011226]
[1769545767770,0.00258838,89211.0,89196.0,0.011226]
[1769545768168,0.00934672,89206.0,89170.0,0.00932615]
[1769545768368,0.011226,89195.0,89178.0,0.011228]
[1769545768573,0.00934672,89193.0,89172.0,0.10104]
[1769545768773,0.011227,89188.0,89172.0,0.10104]
[1769545768978,0.0119351,89187.0,89169.0,0.10104]
[1769545769178,0.02057372,89186.0,89169.0,0.10104]
[1769545769378,0.00258838,89185.0,89169.0,0.10104]
[1769545770376,0.00258838,89185.0,89175.0,0.011228]
[1769545770570,0.00258838,89185.0,89174.0,0.011229]
[1769545771573,3.8e-07,89185.0,89175.0,0.013817]
[1769545771881,0.011222,89228.0,89175.0,0.013817]
[1769545771882,0.011,89227.0,89189.0,0.00932615]
[1769545772082,0.00934672,89225.0,89207.0,0.011224]
[1769545772383,0.00086282,89224.0,89208.0,0.00258838]
[1769545772778,0.01020954,89224.0,89213.0,0.011224]
[1769545772985,0.01020954,89224.0,89214.0,0.00258838]
[1769545774574,0.01020954,89224.0,89197.0,0.00932615]
[1769545774775,0.01020954,89224.0,89198.0,0.01191453]
[1769545775275,0.00934672,89220.0,89205.0,0.011225]
[1769545775474,0.00934672,89218.0,89202.0,0.011225]
[1769545775674,0.00934672,89215.0,89196.0,0.10104]
[1769545775874,0.00086282,89214.0,89197.0,0.00258838]
[1769545776080,0.00934672,89215.0,89197.0,0.00258838]
[1769545776081,0.011,89227.0,89216.0,0.011223]
[1769545776287,0.11286282,89227.0,89217.0,0.01381138]
[1769545776986,0.011221,89235.0,89219.0,0.011223]
[1769545777288,0.101,89229.0,89220.0,0.00258838]
[1769545777476,0.00086282,89228.0,89220.0,0.00258838]
[1769545778077,0.00086282,89228.0,89221.0,0.011223]
[1769545778274,0.00086282,89228.0,89220.0,0.00258838]
[1769545778479,0.00086282,89228.0,89218.0,0.02054915]
[1769545778480,0.00086282,89228.0,89218.0,0.011223]
[1769545778675,0.00086282,89228.0,89212.0,0.011224]
[1769545778880,0.01020954,89228.0,89215.0,0.011223]
[1769545779084,0.01020954,89228.0,89212.0,0.01381238]
[1769545779490,0.011222,89227.0,89212.0,0.011224]
[1769545779688,0.011222,89225.0,89209.0,0.011224]
[1769545779986,0.00086282,89224.0,89214.0,0.011224]
[1769545780187,0.01020954,89224.0,89211.0,0.011224]
[1769545780488,0.01020954,89224.0,89201.0,0.101]
[1769545780680,0.02056972,89217.0,89201.0,0.01381338]
[1769545780880,0.10186282,89216.0,89201.0,0.01381338]
[1769545781479,0.011224,89215.0,89201.0,0.01381338]
[1769545781674,0.011224,89213.0,89198.0,0.011226]
[1769545781875,0.00086282,89212.0,89198.0,0.011226]
[1769545782590,0.00086282,89212.0,89198.0,0.00258838]
[1769545783087,0.00086282,89212.0,89204.0,0.011225]
[1769545783285,0.00086282,89212.0,89198.0,0.00258838]
[1769545783592,0.01020954,89212.0,89188.0,0.101]
[1769545783787,0.01020954,89212.0,89189.0,0.00258838]
[1769545784088,0.01020954,89212.0,89190.0,0.011227]
[1769545784089,0.00934672,89206.0,89190.0,0.011227]
[1769545784289,0.011226,89197.0,89181.0,0.00864563]
[1769545784488,0.11120954,89196.0,89179.0,0.011228]
[1769545784793,0.00934672,89195.0,89181.0,0.011228]
[1769545784994,0.00086282,89194.0,89184.0,0.011227]
[1769545785182,0.00086282,89194.0,89181.0,0.011228]
[1769545785383,0.00934672,89215.0,89192.0,0.00865159]
[1769545785589,0.011224,89213.0,89197.0,0.011226]
[1769545785783,0.407824,89212.0,89198.0,0.00258838]
[1769545786090,0.3966,89211.0,89198.0,0.01381438]
[1769545786684,0.00934672,89215.0,89200.0,0.011225]
[1769545786894,0.3966,89214.0,89201.0,0.00258838]
[1769545787895,0.00934672,89209.0,89193.0,0.011226]
[1769545788489,0.00934672,89209.0,89184.0,0.01170085]
[1769545788685,0.3966,89214.0,89184.0,0.00258838]
[1769545788886,0.101,89227.0,89194.0,0.00911247]
[1769545789087,0.10982017,89226.0,89200.0,0.1432205]
[1769545789286,0.101,89232.0,89201.0,0.00258838]
[1769545789287,0.01004075,89230.0,89201.0,0.00258838]
[1769545789795,0.101,89232.0,89201.0,0.00258838]
[1769545789796,0.01004075,89228.0,89201.0,0.00258838]
[1769545790196,0.011222,89227.0,89201.0,0.00258838]
[1769545790393,0.01004075,89224.0,89205.0,0.011225]
[1769545790603,0.01004075,89224.0,89206.0,0.00258838]
[1769545791093,0.01000474,89222.0,89207.0,0.011224]
[1769545791303,0.3966,89221.0,89207.0,0.01381238]
[1769545791592,0.41782774,89221.0,89204.0,0.011225]
[1769545791783,0.40660474,89221.0,89205.0,0.00258838]
[1769545791982,0.40660474,89221.0,89210.0,0.011224]
[1769545792186,0.3966,89221.0,89216.0,0.011223]
[1769545792389,0.101,89221.0,89217.0,0.011223]
[1769545792587,0.101,89221.0,89217.0,0.00258838]
[1769545792996,0.101,89221.0,89211.0,0.011224]
[1769545793198,0.101,89221.0,89213.0,0.011224]
[1769545793403,0.101,89221.0,89214.0,0.00258838]
[1769545794403,0.101,89221.0,89200.0,0.101]
[1769545794604,0.101,89221.0,89209.0,0.011224]
[1769545794901,0.101,89221.0,89210.0,0.00258838]
[1769545795399,0.011223,89217.0,89200.0,0.101]
[1769545795606,0.101,89221.0,89200.0,0.101]
[1769545795607,0.01001069,89216.0,89204.0,0.011225]
[1769545795799,0.01001069,89216.0,89200.0,0.10358838]
[1769545796107,0.01001069,89216.0,89189.0,0.112227]
[1769545796293,0.01001069,89210.0,89190.0,0.011227]
[1769545796599,0.01001069,89207.0,89194.0,0.011226]
[1769545796802,0.01001069,89207.0,89194.0,0.01381438]
[1769545797002,0.3966,89209.0,89194.0,0.00258838]
[1769545797209,0.01001069,89215.0,89194.0,0.00258838]
[1769545797410,0.407824,89214.0,89197.0,0.011226]
[1769545797702,0.41784235,89214.0,89198.0,0.00258838]
[1769545797902,0.01001835,89213.0,89198.0,0.00258838]
[1769545798290,0.01001835,89213.0,89199.0,0.011226]
[1769545798494,0.01001835,89213.0,89200.0,0.00258838]
[1769545798693,0.01001835,89210.0,89200.0,0.00258838]
[1769545799007,0.01001835,89210.0,89201.0,0.011225]
[1769545799302,0.01001835,89210.0,89198.0,0.011226]
[1769545800299,0.01000699,89204.0,89193.0,0.011226]
[1769545800503,0.101,89204.0,89193.0,0.00258838]
[1769545800805,0.101,89204.0,89193.0,0.01381438]
[1769545800989,0.101,89204.0,89193.0,0.00258838]
[1769545801197,0.101,89204.0,89189.0,0.101]
[1769545801388,0.101,89204.0,89189.0,0.10358838]
[1769545801904,0.101,89208.0,89199.0,0.011225]
[1769545802094,0.101,89208.0,89197.0,0.011226]
[1769545802594,0.101,89208.0,89197.0,0.00258838]
[1769545803104,0.011223,89222.0,89206.0,0.011225]
[1769545803305,0.011223,89220.0,89207.0,0.00258838]
[1769545803505,0.011223,89216.0,89202.0,0.011225]
[1769545803803,0.011223,89219.0,89204.0,0.011225]
[1769545803999,0.011224,89214.0,89191.0,0.00933693]
[1769545804198,0.2752,89221.0,89193.0,0.00933693]
[1769545804405,0.1432205,89210.0,89165.0,0.22060776]
[1769545804610,0.011228,89178.0,89158.0,0.011231]
[1769545804804,0.011229,89171.0,89153.0,0.00560837]
[1769545805105,0.00976482,89159.0,89141.0,0.011233]
[1769545805306,0.06447918,89160.0,89152.0,0.011231]
[1769545805500,9.486e-05,89159.0,89153.0,0.00258838]
[1769545805807,9.486e-05,89159.0,89148.0,0.011232]
[1769545806107,0.2956,89163.0,89162.0,0.01123]
[1769545806408,0.101,89176.0,89165.0,0.01123]
[1769545806607,0.101,89176.0,89159.0,0.011231]
[1769545806812,0.10075073,89176.0,89160.0,0.00258838]
[1769545807198,0.10075073,89176.0,89168.0,0.011229]
[1769545807398,0.10075073,89176.0,89164.0,0.01123]
[1769545807601,0.011228,89183.0,89167.0,0.01123]
[1769545807903,0.00976482,89187.0,89178.0,0.011228]
[1769545807904,0.10104,89186.0,89178.0,0.011228]
[1769545808103,0.10104,89186.0,89178.0,0.00258838]
[1769545808908,0.10104,89186.0,89168.0,0.00933693]
[1769545809109,0.10104,89186.0,89173.0,0.011229]
[1769545809306,0.10104,89186.0,89174.0,0.00258838]
[1769545809610,0.10104,89186.0,89175.0,0.011229]
[1769545809803,0.10104,89186.0,89174.0,0.00258838]
[1769545809804,0.10104,89186.0,89176.0,0.00258838]
[1769545810403,0.10104,89186.0,89166.0,0.10104]
[1769545810604,0.10104,89186.0,89171.0,0.011229]
[1769545810808,0.10104,89186.0,89172.0,0.00258838]
[1769545811006,0.00976482,89174.0,89152.0,0.10104]
[1769545811201,0.00976482,89185.0,89157.0,0.00258838]
[1769545811604,0.10104,89186.0,89117.0,0.22060776]
[1769545811605,0.00976482,89167.0,89117.0,0.22060776]
[1769545811804,0.1432205,89170.0,89113.0,0.00224435]
[1769545811805,0.00976482,89138.0,89113.0,0.00224435]
[1769545812105,0.01123,89162.0,89094.0,0.00933693]
[1769545812106,0.00208646,89123.0,89094.0,0.00933693]
[1769545812307,0.00208646,89123.0,89074.0,0.28994994]
[1769545812308,0.011236,89119.0,89097.0,0.011238]
[1769545812503,0.39930838,89118.0,89106.0,0.02341325]
[1769545812809,0.3707531,89117.0,89106.0,0.01217625]
[1769545813004,0.00258838,89117.0,89107.0,0.011237]
[1769545813207,0.00258838,89117.0,89108.0,0.00086238]
[1769545813800,0.39672,89122.0,89108.0,0.00086238]
[1769545814005,0.00258838,89121.0,89108.0,0.00086238]
[1769545814801,0.00258838,89121.0,89109.0,0.011237]
[1769545815001,0.00258838,89121.0,89106.0,0.01131387]
[1769545815002,0.00258838,89121.0,89110.0,0.00086238]
[1769545815909,0.00258838,89121.0,89106.0,0.01131387]
[1769545816105,0.00258838,89121.0,89106.0,0.01217625]
[1769545816305,0.011236,89120.0,89106.0,0.01217625]
[1769545816507,0.011237,89108.0,89086.0,0.01122505]
[1769545816813,0.011239,89096.0,89086.0,0.01122505]
[1769545817010,0.011239,89094.0,89069.0,0.10108]
[1769545817309,0.011239,89092.0,89070.0,0.00086238]
[1769545817515,0.00267972,89091.0,89070.0,0.00086238]
[1769545817712,7.2e-07,89091.0,89070.0,0.00086238]
[1769545817908,0.29576,89101.0,89075.0,0.01003559]
[1769545818103,0.29576,89100.0,89081.0,0.01124]
[1769545818415,0.29576,89100.0,89082.0,0.00258838]
[1769545818710,0.29576,89100.0,89083.0,0.01124]
[1769545819015,0.29576,89100.0,89082.0,0.00258838]
[1769545819016,0.011236,89116.0,89093.0,0.011239]
[1769545819207,0.011236,89114.0,89094.0,0.00258838]
[1769545819513,0.011237,89104.0,89094.0,0.00258838]
[1769545819725,0.011237,89104.0,89084.0,0.02127559]
[1769545819909,0.011237,89104.0,89085.0,0.00258838]
[1769545820117,0.011237,89108.0,89089.0,0.011239]
[1769545820408,0.2958,89112.0,89092.0,0.011239]
[1769545820614,0.011237,89109.0,89093.0,0.00258838]
[1769545820805,0.011237,89109.0,89094.0,0.00258838]
[1769545821005,0.011237,89109.0,89088.0,0.011239]
[1769545821319,0.1432205,89110.0,89075.0,0.011241]
[1769545821620,0.011239,89094.0,89076.0,0.10108]
[1769545821804,0.1432205,89110.0,89077.0,0.00258838]
[1769545821805,0.011238,89098.0,89077.0,0.00258838]
[1769545822004,0.39692,89100.0,89077.0,0.00258838]
[1769545822204,0.011238,89099.0,89077.0,0.00258838]
[1769545822407,0.39692,89100.0,89085.0,0.01124]
[1769545822608,0.1432205,89130.0,89087.0,0.01124]
[1769545822815,0.1432205,89130.0,89076.0,0.10108]
[1769545822816,0.39692,89121.0,89088.0,0.00258838]
[1769545823015,0.50916289,89121.0,89088.0,0.00258838]
[1769545823218,0.2,89104.0,89088.0,0.00258838]
[1769545823419,0.011238,89103.0,89088.0,0.00258838]
[1769545824411,0.2,89104.0,89088.0,0.00258838]
[1769545824609,0.2,89104.0,89089.0,0.011239]
[1769545824810,0.2,89104.0,89090.0,0.00258838]
[1769545825116,0.1432205,89130.0,89095.0,0.011239]
[1769545825413,0.011236,89116.0,89096.0,0.00258838]
[1769545825610,0.397,89115.0,89096.0,0.00258838]
[1769545825813,0.397,89115.0,89096.0,0.01382638]
[1769545826206,0.011236,89114.0,89096.0,0.01382638]
[1769545826608,0.397,89115.0,89096.0,0.00258838]
[1769545826803,0.397,89115.0,89101.0,0.011238]
[1769545826804,0.10112,89115.0,89101.0,0.011238]
[1769545827008,0.10112,89115.0,89102.0,0.00258838]
[1769545827416,0.10112,89115.0,89091.0,0.011239]
[1769545827608,0.10112,89115.0,89095.0,0.011239]
[1769545827808,0.011237,89111.0,89096.0,0.00258838]
[1769545828004,0.00258838,89110.0,89084.0,0.01013518]
[1769545828209,0.011237,89108.0,89081.0,0.10112]
[1769545828415,0.011239,89094.0,89081.0,0.00086276]
[1769545828723,0.25545016,89110.0,89081.0,0.00086276]
[1769545828724,0.00258838,89093.0,89081.0,0.00086276]
[1769545828905,0.10112,89099.0,89081.0,0.00086276]
[1769545829214,0.00258838,89098.0,89086.0,0.01124]
[1769545829515,0.00258838,89098.0,89087.0,0.00086276]
[1769545829708,0.00258838,89098.0,89079.0,0.10112]
[1769545829913,0.011239,89090.0,89080.0,0.00086276]
[1769545830114,0.00258838,89089.0,89080.0,0.00086276]
[1769545830318,0.10112,89102.0,89085.0,0.01124]
[1769545830517,0.011238,89101.0,89086.0,0.00258838]
[1769545831003,0.10112,89102.0,89087.0,0.01124]
[1769545831207,0.10112,89102.0,89088.0,0.00258838]
[1769545831512,0.10112,89102.0,89071.0,0.01009721]
[1769545831513,0.29850838,89101.0,89070.0,0.011242]
[1769545831713,0.29850838,89101.0,89061.0,0.01012879]
[1769545831921,0.011241,89074.0,89067.0,0.00086276]
[1769545832116,0.011241,89074.0,89063.0,0.10112]
[1769545832117,0.00258838,89073.0,89052.0,0.01012879]
[1769545832415,0.00258838,89073.0,89046.0,0.02242841]
[1769545832416,0.00258838,89072.0,89053.0,0.11124879]
[1769545832616,0.00258838,89072.0,89052.0,0.011244]
[1769545832818,0.011242,89071.0,89053.0,0.011244]
[1769545833115,0.29592,89084.0,89046.0,0.11235009]
[1769545833116,0.011241,89078.0,89050.0,0.01012879]
[1769545833320,0.01124,89087.0,89054.0,0.01013405]
[1769545833520,0.011242,89071.0,89055.0,0.29596]
[1769545833814,0.011239,89091.0,89062.0,0.011243]
[1769545834018,0.00258838,89089.0,89055.0,0.39708]
[1769545834214,0.11486845,89089.0,89057.0,0.011243]
[1769545834417,0.11486845,89089.0,89059.0,0.011243]
[1769545834418,0.011241,89075.0,89059.0,0.011243]
[1769545834617,0.01124,89084.0,89065.0,0.011242]
[1769545834818,0.011241,89079.0,89062.0,0.011243]
[1769545835118,0.011241,89075.0,89060.0,0.39708]
[1769545835308,0.00258838,89074.0,89061.0,0.29596]
[1769545835511,0.011242,89065.0,89048.0,0.011245]
[1769545835722,0.00258838,89064.0,89049.0,0.39708]
[1769545835916,0.00258838,89064.0,89050.0,0.011244]
[1769545836123,0.01124,89084.0,89055.0,0.011244]
[1769545836318,0.011242,89072.0,89056.0,0.00258838]
[1769545836522,0.011242,89068.0,89056.0,0.00258838]
[1769545836816,0.011242,89066.0,89057.0,0.296]
[1769545837020,0.01210482,89066.0,89057.0,0.39712]
[1769545837418,0.00086282,89066.0,89034.0,0.01017742]
[1769545837618,0.00086282,89066.0,89047.0,0.10112]
[1769545837814,0.011244,89055.0,89048.0,0.00258838]
[1769545838010,0.00086282,89054.0,89048.0,0.00258838]
[1769545838319,0.011244,89057.0,89048.0,0.00258838]
[1769545838520,0.011244,89057.0,89016.0,0.011249]
[1769545838521,0.011245,89043.0,89024.0,0.011248]
[1769545838726,0.011246,89040.0,89034.0,0.00258838]
[1769545838919,0.011246,89040.0,89025.0,0.10116]
[1769545838920,0.00086282,89039.0,89025.0,0.10116]
[1769545839116,0.011246,89038.0,89025.0,0.10116]
[1769545839319,0.00258838,89037.0,89025.0,0.10116]
[1769545839521,0.011245,89047.0,89025.0,0.10116]
[1769545839722,0.01383338,89046.0,89026.0,0.02247961]
[1769545840619,0.011245,89043.0,89026.0,0.01123261]
[1769545840824,0.011245,89041.0,89026.0,0.01123261]
[1769545841025,0.011246,89039.0,89026.0,0.01123261]
[1769545841224,0.00258838,89038.0,89026.0,0.01123261]
[1769545841420,0.01134916,89037.0,89026.0,0.01123261]
[1769545841719,0.00258838,89036.0,89009.0,0.01018238]
[1769545841920,0.00258838,89036.0,88993.0,0.00786583]
[1769545841921,0.00258838,89036.0,89011.0,0.01018238]
[1769545842114,0.011246,89034.0,89013.0,0.011249]
[1769545842310,0.00258838,89033.0,89010.0,0.3972]
[1769545842516,0.011247,89029.0,89010.0,0.408449]
[1769545842714,0.00258838,89028.0,89011.0,0.01018238]
[1769545843420,0.00258838,89028.0,89016.0,0.011249]
[1769545843617,0.00258838,89028.0,89012.0,0.408489]
[1769545844410,0.00010316,89037.0,89012.0,0.40750026]
[1769545844610,0.00258838,89036.0,89015.0,0.01026026]
[1769545845011,0.011246,89034.0,89016.0,0.011249]
[1769545845216,0.00258838,89033.0,89017.0,0.39724]
[1769545845419,0.01383538,89033.0,89017.0,0.39724]
[1769545845926,0.011247,89030.0,89017.0,0.39724]
[1769545846114,0.011247,89027.0,89017.0,0.39724]
[1769545846312,0.00258838,89027.0,89006.0,0.01028874]
[1769545846515,0.00258838,89027.0,89006.0,1.3e-07]
[1769545846819,0.0001081,89026.0,89007.0,0.39728]
[1769545847125,0.011248,89018.0,89007.0,0.39728]
[1769545847323,0.00258838,89017.0,89007.0,0.40853]
[1769545847522,0.00258838,89017.0,89007.0,0.11245]
[1769545847827,0.00258838,89017.0,89007.0,0.1012]
[1769545848321,0.011247,89025.0,89008.0,0.01125]
[1769545848516,0.011247,89025.0,89007.0,0.1012]
[1769545848517,0.011246,89035.0,89019.0,0.01031981]
[1769545848716,0.00258838,89035.0,89020.0,0.11151981]
[1769545848921,0.011247,89032.0,89021.0,0.1012]
[1769545849118,0.00258838,89031.0,89021.0,0.1012]
[1769545849521,0.1012,89046.0,89021.0,0.1012]
[1769545849716,0.011244,89053.0,89036.0,0.01038159]
[1769545849925,0.00258838,89052.0,89037.0,0.39732]
[1769545850222,0.00258838,89052.0,89037.0,0.40770159]
[1769545850428,0.011244,89051.0,89037.0,0.01038159]
[1769545850721,0.011244,89051.0,89006.0,1.3e-07]
[1769545850722,0.00258838,89050.0,89038.0,0.39736]
[1769545850915,0.011245,89041.0,89035.0,0.1012]
[1769545851120,0.011246,89037.0,89029.0,0.29616]
[1769545851316,0.00258838,89036.0,89019.0,0.30658202]
[1769545851523,0.00258838,89036.0,89020.0,0.1012]
[1769545851725,0.011246,89035.0,89020.0,0.1012]
[1769545851924,0.011247,89032.0,89020.0,0.1012]
[1769545852227,0.011247,89028.0,89011.0,0.02167102]
[1769545852419,0.01383538,89027.0,89012.0,0.39736]
[1769545852620,0.1012,89044.0,89006.0,1.3e-07]
[1769545852621,0.011248,89019.0,89006.0,1.3e-07]
[1769545852929,0.00258838,89018.0,89006.0,0.10120013]
[1769545853129,0.00258838,89018.0,89006.0,1.3e-07]
[1769545853320,0.011251,88995.0,88993.0,8.3e-07]
[1769545853519,0.00258838,88994.0,88976.0,0.1012]
[1769545853922,0.011251,89000.0,88980.0,0.0216419]
[1769545854228,0.00258838,88999.0,88983.0,0.011253]
[1769545854429,0.00258838,88998.0,88983.0,0.011253]
[1769545854816,0.00258838,88998.0,88980.0,0.0103889]
[1769545855222,0.00258838,88998.0,88981.0,0.011253]
[1769545855417,0.00258838,88998.0,88980.0,0.0103889]
[1769545855623,0.00258838,88998.0,88980.0,0.1115889]
[1769545856030,0.1012,89007.0,88992.0,0.01044881]
[1769545856227,0.10378838,89007.0,88992.0,0.01044881]
[1769545856429,0.10378838,89007.0,88995.0,0.011251]
[1769545856628,0.011247,89032.0,89000.0,0.011251]
[1769545856629,0.1012,89019.0,89000.0,0.011251]
[1769545856826,0.00258838,89016.0,89000.0,0.011251]
[1769545857731,0.01383738,89016.0,88999.0,0.01044881]
[1769545857927,0.011249,89014.0,88999.0,0.01044881]
[1769545858131,0.00258838,89013.0,88999.0,0.1012]
[1769545858431,0.011248,89018.0,89000.0,0.00915075]
[1769545858623,0.011249,89015.0,89000.0,0.00915075]
[1769545858823,0.00258838,89014.0,89000.0,0.00915075]
[1769545859936,0.011249,89013.0,88999.0,0.1012]
[1769545860123,0.011249,89017.0,88999.0,0.1012]
[1769545860430,0.00024927,89021.0,89006.0,0.00915075]
[1769545860639,0.00086282,89020.0,89007.0,0.00258838]
[1769545861530,0.01211082,89020.0,89007.0,0.00258838]
[1769545862139,0.011249,89016.0,89007.0,0.00258838]
[1769545862339,0.00086282,89020.0,89006.0,0.00915075]
[1769545862340,0.00086282,89015.0,89006.0,0.00915075]
[1769545862534,0.00086282,89015.0,89007.0,0.00258838]
[1769545862737,0.00024927,89021.0,89007.0,0.00258838]
[1769545863043,0.00111209,89021.0,89007.0,0.00258838]
[1769545863340,0.011246,89035.0,89017.0,0.011248]
[1769545863528,0.11049651,89054.0,89019.0,0.00915075]
[1769545863728,0.01186282,89047.0,89030.0,0.00915075]
[1769545864036,0.01186282,89047.0,89036.0,0.011246]
[1769545864236,0.02115933,89047.0,89022.0,0.00915075]
[1769545864440,0.02115933,89047.0,89023.0,0.39744]
[1769545864441,0.011246,89039.0,89023.0,0.39744]
[1769545864747,0.011246,89037.0,89023.0,0.40002838]
[1769545864944,0.00086282,89036.0,89023.0,0.40002838]
[1769545866141,0.00086282,89036.0,89013.0,0.00915075]
[1769545866446,0.011247,89026.0,89014.0,0.39998838]
[1769545866639,0.00086282,89025.0,89015.0,0.1012]
[1769545866844,0.1012,89043.0,89017.0,0.011248]
[1769545867046,0.00224637,89033.0,89018.0,0.00258838]
[1769545867545,0.011249,89017.0,89005.0,0.1012]
[1769545867844,0.011248,89018.0,89006.0,0.00258838]
[1769545868230,0.011248,89021.0,89006.0,0.00258838]
[1769545868444,0.011248,89019.0,89006.0,0.00258838]
[1769545868837,0.011248,89023.0,89006.0,0.01383838]
[1769545869036,0.00224637,89033.0,89019.0,0.011248]
[1769545869244,0.00224637,89033.0,89020.0,0.00258838]
[1769545869743,0.00224637,89033.0,89023.0,0.011248]
[1769545869938,0.1012,89037.0,89024.0,0.00258838]
[1769545870540,0.30549651,89048.0,89025.0,0.00915075]
[1769545870541,0.1012,89048.0,89025.0,0.00915075]
[1769545870746,0.011246,89041.0,89027.0,0.00915075]
[1769545870943,0.011246,89039.0,89028.0,0.00258838]
[1769545871249,0.011246,89037.0,89028.0,0.00258838]
[1769545871637,0.1012,89048.0,89027.0,0.10095048]
[1769545871836,0.1012,89048.0,89010.0,0.00915075]
[1769545871837,0.002588,89036.0,89010.0,0.00915075]
[1769545872038,0.011248,89024.0,89015.0,0.2962]
[1769545872234,0.011248,89022.0,89015.0,0.2970632]
[1769545872443,0.011248,89020.0,89010.0,0.00915075]
[1769545872645,0.002588,89019.0,89011.0,0.1012]
[1769545873048,0.00929651,89033.0,89012.0,0.00238673]
[1769545873349,0.011249,89014.0,89007.0,0.1012]
[1769545873542,0.00106447,89013.0,89007.0,0.1012]
[1769545874148,0.011248,89020.0,89007.0,0.10358673]
[1769545874346,0.00106447,89020.0,89008.0,0.01125]
[1769545874543,0.2962,89037.0,89009.0,0.00238673]
[1769545874747,0.21223383,89036.0,89010.0,0.00915075]
[1769545875051,0.21223383,89036.0,89011.0,0.00258838]
[1769545875052,0.011248,89025.0,89011.0,0.00258838]
[1769545875244,0.011247,89027.0,89012.0,0.011249]
[1769545875444,0.011247,89030.0,89014.0,0.011249]
[1769545875644,0.011247,89033.0,89016.0,0.011249]
[1769545875845,0.011248,89025.0,89017.0,0.00258838]
[1769545876155,0.011248,89025.0,89010.0,0.02039975]
[1769545876338,0.011248,89023.0,89011.0,0.00258838]
[1769545876846,0.1012,89036.0,88974.0,0.28221308]
[1769545876847,0.00929651,89030.0,89005.0,0.2962]
[1769545877155,0.011248,89021.0,89006.0,0.11503838]
[1769545877345,0.011248,89019.0,89006.0,0.11503838]
[1769545877743,0.00929651,89027.0,89002.0,0.2962]
[1769545877744,0.011248,89021.0,89002.0,0.2962]
[1769545877943,0.011248,89021.0,89003.0,0.10378838]
[1769545878245,0.011247,89026.0,89003.0,0.10378838]
[1769545878445,0.011249,89014.0,89003.0,0.10378838]
[1769545878642,0.00929651,89027.0,89003.0,0.10378838]
[1769545878842,0.00929651,89027.0,89003.0,0.00258838]
[1769545879042,0.01125,89008.0,88997.0,0.1012]
[1769545879358,0.1012,89021.0,88999.0,0.0008632]
[1769545879549,0.103788,89021.0,88999.0,0.0008632]
[1769545879948,0.002588,89021.0,89002.0,0.00915075]
[1769545880258,0.002588,89021.0,88997.0,0.1012]
[1769545880259,0.103788,89021.0,88997.0,0.1012]
[1769545880448,0.011249,89010.0,88998.0,0.0008632]
[1769545880648,0.1012,89021.0,88999.0,0.00915075]
[1769545880850,0.011248,89017.0,89003.0,0.01125]
[1769545881055,0.011248,89017.0,89004.0,0.00258838]
[1769545882255,0.011247,89026.0,89012.0,0.011249]
[1769545882456,0.1012,89029.0,89013.0,0.00258838]
[1769545882661,0.112447,89029.0,89013.0,0.00258838]
[1769545882856,0.011247,89027.0,89013.0,0.00258838]
[1769545883456,0.011246,89040.0,89019.0,0.00979296]
[1769545883656,0.011246,89038.0,89023.0,0.011248]
[1769545883956,0.011246,89038.0,89024.0,0.00258838]
[1769545884154,0.10124,89041.0,89024.0,0.00258838]
[1769545884555,0.10124,89041.0,89029.0,0.011247]
[1769545884761,0.112485,89041.0,89030.0,0.00258838]
[1769545884955,0.011246,89039.0,89030.0,0.00258838]
[1769545885654,0.10124,89041.0,89030.0,0.00258838]
[1769545885959,0.011,89047.0,89031.0,0.00954294]
[1769545886161,0.1012,89053.0,89042.0,0.011245]
[1769545886354,0.1012,89053.0,89043.0,0.00258838]
[1769545886864,0.011243,89057.0,89043.0,0.22319614]
[1769545887062,0.1012,89063.0,89043.0,0.22319614]
[1769545887063,0.011244,89054.0,89043.0,0.22319614]
[1769545887270,0.011244,89054.0,89043.0,0.00258838]
[1769545887463,0.011243,89062.0,89033.0,0.1012]
[1769545887464,0.011246,89041.0,89033.0,0.1012]
[1769545887766,0.002588,89053.0,89036.0,0.00954294]
[1769545887964,0.011245,89049.0,89037.0,0.0008632]
[1769545888163,0.013832,89053.0,89037.0,0.0008632]
[1769545888764,0.011244,89051.0,89037.0,0.0008632]
[1769545889064,0.011245,89047.0,89034.0,0.2962]
[1769545889267,0.002588,89046.0,89035.0,0.1020632]
[1769545889461,0.002588,89046.0,89038.0,0.011246]
[1769545889767,0.002588,89046.0,89039.0,0.0008632]
[1769545891165,0.013833,89046.0,89035.0,0.1012]
[1769545891361,0.013833,89046.0,89035.0,0.1020632]
[1769545891560,0.002588,89046.0,89035.0,0.1133092]
[1769545892362,0.002588,89046.0,89035.0,0.1020632]
[1769545892670,0.002588,89046.0,89038.0,0.011246]
[1769545892870,0.002588,89046.0,89039.0,0.0008632]
[1769545895868,0.002588,89046.0,89035.0,0.112446]
[1769545895869,0.002588,89046.0,89035.0,0.011246]
[1769545896067,0.013833,89046.0,89036.0,0.2970232]
[1769545896267,0.011245,89044.0,89036.0,0.2970232]
[1769545896472,0.013833,89044.0,89036.0,0.2970232]
[1769545896763,0.002588,89044.0,89036.0,0.29616]
[1769545896972,0.002588,89044.0,89031.0,0.011247]
[1769545897163,0.011245,89043.0,89028.0,0.307407]
[1769545897360,0.011245,89046.0,89028.0,0.30570294]
[1769545897565,0.01383338,89046.0,89029.0,0.00954294]
[1769545898079,0.011244,89056.0,89035.0,0.00954294]
[1769545898264,0.00086282,89055.0,89037.0,0.00954294]
[1769545898460,0.1012,89059.0,89038.0,0.01213132]
[1769545898677,0.29616,89063.0,89043.0,0.00954294]
[1769545898678,0.011243,89063.0,89043.0,0.00954294]
[1769545898863,0.00086282,89062.0,89044.0,0.00258838]
[1769545899067,0.011244,89054.0,89045.0,0.29616]
[1769545899270,0.1012,89068.0,89046.0,0.00258838]
[1769545899466,0.00086282,89066.0,89047.0,0.00954294]
[1769545899667,0.00086282,89066.0,89048.0,0.00258838]
[1769545899973,0.011244,89055.0,89048.0,0.00258838]
[1769545900171,0.011244,89053.0,89045.0,0.29616]
[1769545900372,0.00086282,89052.0,89031.0,0.00954294]
[1769545900672,0.011245,89046.0,89032.0,0.39994838]
[1769545900972,0.011245,89044.0,89033.0,0.1012]
[1769545901171,0.00086282,89043.0,89034.0,0.00258838]
[1769545901379,0.00086282,89043.0,89033.0,0.1012]